[Event "Czech Juniors Boys 2024"]
[Site "Jaromerice nad Rokytnou"]
[Date "2024.03.10"]
[Round "3.4"]
[White "Skypala, Ondrej"]
[Black "Frank, Adam"]
[Result "1/2-1/2"]
[ECO "A25"]
[WhiteElo "2234"]
[BlackElo "2284"]
[Annotator "ChessBase"]
[PlyCount "164"]
[EventDate "2024.03.10"]
[EventType "tourn"]
[EventCountry "CZE"]
[SourceTitle "playchess.com"]
[Source "ChessBase"]
[SourceQuality "1"]
[TimeControl "40/5400+30:1800+30"]

1. c4 {[%emt 0:00:03]} e5 {[%emt 0:00:08]} 2. g3 {[%emt 0:00:02]} Nc6 {[%emt 0:00:05]} 3. Bg2 {[%emt 0:00:04]} g6 {[%emt 0:00:04]} 4. Nc3 {[%emt 0:00:04]} Bg7 {[%emt 0:00:03]} 5. e3 {[%emt 0:00:04]} d6 {[%emt 0:00:06]} 6. Nge2 {[%emt 0:00:06]} f5 {[%emt 0:00:53]} 7. O-O {[%emt 0:00:07]} Nf6 {[%emt 0:00:05]} 8. d3 {[%emt 0:00:12]} O-O {[%emt 0:00:06]} 9. Rb1 {[%emt 0:00:04]} a5 {[%emt 0:00:04]} 10. b3 {[%emt 0:01:42]} Ne7 {[%emt 0:19:10]} 11. f4 {[%emt 0:02:09]} c6 {[%emt 0:08:34]} 12. Ba3 {[%emt 0:08:05]} Qc7 {[%emt 0:00:00]} 13. d4 {[%emt 0:10:30]} e4 {[%emt 0:02:33]} 14. Qd2 {[%emt 0:00:43]} h6 {[%emt 0:00:54]} 15. Rfd1 {[%emt 0:01:19]} g5 {[%emt 0:01:33]} 16. d5 {[%emt 0:05:03]} c5 {[%emt 0:00:11]} 17. Nb5 {[%emt 0:00:10]} Qd8 {[%emt 0:03:14]} 18. Bb2 {[%emt 0:00:07]} b6 {[%emt 0:08:44]} 19. a4 {[%emt 0:00:05]} Ng6 {[%emt 0:00:31]} 20. Rf1 {[%emt 0:00:36]} Qe7 {[%emt 0:06:13]} 21. Bh3 {[%emt 0:00:09]} Ne8 {[%emt 0:04:01]} 22. Bxg7 {[%emt 0:00:06]} Nxg7 {[%emt 0:00:05]} 23. Bg2 {[%emt 0:04:05]} Bd7 {[%emt 0:04:43]} 24. Na3 {[%emt 0:00:46]} Rf7 {[%emt 0:00:35]} 25. Nc2 {[%emt 0:00:16]} Raf8 {[%emt 0:00:36]} 26. Kf2 {[%emt 0:00:27]} Nh5 {[%emt 0:02:17]} 27. Rh1 {[%emt 0:00:21]} Nf6 {[%emt 0:00:54]} 28. Bh3 {[%emt 0:04:06]} Rg7 {[%emt 0:00:38]} 29. Rbg1 {[%emt 0:00:45]} Kf7 {[%emt 0:00:15]} 30. Ke1 {[%emt 0:00:07]} Ke8 {[%emt 0:00:04]} 31. Kd1 {[%emt 0:00:44]} Kd8 {[%emt 0:00:04]} 32. Rf1 {[%emt 0:01:06]} Ne8 {[%emt 0:08:06]} 33. Rf2 {[%emt 0:00:46]} Rgf7 {[%emt 0:00:17]} 34. Rhf1 {[%emt 0:00:35]} Kc7 {[%emt 0:02:47]} 35. Qc3 {[%emt 0:00:50]} Rf6 {[%emt 0:02:41]} 36. Rh1 {[%emt 0:01:13]} Qf7 {[%emt 0:00:37]} 37. Bf1 {[%emt 0:00:06]} Rg8 {[%emt 0:02:15]} 38. Ng1 {[%emt 0:01:20]} Qe7 {[%emt 0:01:59]} 39. Be2 {[%emt 0:00:34]} Rf7 {[%emt 0:00:30]} 40. Nh3 {[%emt 0:01:02]} Rh7 {[%emt 0:01:06]} 41. Bh5 {[%emt 0:33:56]} Nf6 {[%emt 0:30:13]} 42. Be2 {[%emt 0:00:04]} Nh8 {[%emt 0:01:56]} 43. Rhf1 {[%emt 0:01:21]} Nf7 {[%emt 0:00:27]} 44. Ne1 {[%emt 0:00:57]} g4 {[%emt 0:00:00]} 45. Ng1 {[%emt 0:00:00]} h5 {[%emt 0:00:00]} 46. Ng2 {[%emt 0:00:00]} Nh8 {[%emt 0:00:00]} 47. Nh4 {[%emt 0:00:00]} Ng6 {[%emt 0:00:00]} 48. Nxg6 {[%emt 0:00:00]} Rxg6 {[%emt 0:00:00]} 49. Rg2 {[%emt 0:00:00]} h4 {[%emt 0:00:00]} 50. Kc2 {[%emt 0:00:00]} Rgh6 {[%emt 0:00:00]} 51. Bd1 {[%emt 0:00:00]} hxg3 {[%emt 0:00:00]} 52. hxg3 {[%emt 0:00:00]} Rh1 {[%emt 0:00:00]} 53. Rff2 {[%emt 0:00:00]} Qf8 {[%emt 0:00:00]} 54. Kc1 {[%emt 0:00:00]} R7h6 {[%emt 0:00:01]} 55. Qb2 {[%emt 0:00:00]} Qg7 {[%emt 0:00:16]} 56. Be2 {[%emt 0:00:00]} Qg6 {[%emt 0:04:53]} 57. Bf1 {[%emt 0:00:00]} Be8 {[%emt 0:05:15]} 58. Kb1 {[%emt 0:00:00]} Bf7 {[%emt 0:00:09]} 59. Qd2 {[%emt 0:00:00]} Rh7 {[%emt 0:00:17]} 60. Ne2 {[%emt 0:00:00]} Nd7 {[%emt 0:01:45]} 61. Nc3 {[%emt 0:00:00]} Nb8 {[%emt 0:00:09]} 62. Kb2 {[%emt 0:00:00]} R7h3 {[%emt 0:01:08]} 63. Ne2 {[%emt 0:00:00]} Na6 {[%emt 0:00:05]} 64. Ng1 {[%emt 0:00:00]} Rh7 {[%emt 0:00:17]} 65. Be2 {[%emt 0:00:00]} Nb4 {[%emt 0:00:05]} 66. Bf1 {[%emt 0:00:00]} Qg7+ {[%emt 0:00:58]} 67. Kb1 {[%emt 0:00:00]} Qh8 {[%emt 0:00:18]} 68. Be2 {[%emt 0:00:00]} Kd7 {[%emt 0:00:09]} 69. Bf1 {[%emt 0:00:00]} Ke8 {[%emt 0:00:08]} 70. Be2 {[%emt 0:00:00]} Ke7 {[%emt 0:00:04]} 71. Bf1 {[%emt 0:00:00]} Qa8 {[%emt 0:00:04]} 72. Qb2 {[%emt 0:00:00]} Bxd5 {[%emt 0:12:17]} 73. cxd5 {[%emt 0:00:00]} Qxd5 {[%emt 0:00:03]} 74. Rd2 {[%emt 0:00:00]} Qe6 {[%emt 0:00:03]} 75. Rd1 {[%emt 0:00:00]} d5 {[%emt 0:00:29]} 76. Bb5 {[%emt 0:00:05]} Qf6 {[%emt 0:01:34]} 77. Qd2 {[%emt 0:03:17]} Rh8 {[%emt 0:01:37]} 78. Ne2 {[%emt 0:01:51]} R1h2 {[%emt 0:00:11]} 79. Rxh2 {[%emt 0:02:35]} Rxh2 {[%emt 0:00:04]} 80. Bc4 {[%emt 0:00:19]} Qe6 {[%emt 0:01:42]} 81. Bb5 {[%emt 0:01:02]} Qf6 {[%emt 0:00:30]} 82. Bc4 {[%emt 0:00:05]} Qe6 {[%emt 0:00:04]} 1/2-1/2

[Event "Czech Juniors Boys 2024"]
[Site "Jaromerice nad Rokytnou"]
[Date "2024.03.10"]
[Round "3.5"]
[White "Paseka, Matyas"]
[Black "Hak, David"]
[Result "0-1"]
[ECO "B70"]
[WhiteElo "2233"]
[BlackElo "2283"]
[Annotator "ChessBase"]
[PlyCount "116"]
[EventDate "2024.03.10"]
[EventType "tourn"]
[EventCountry "CZE"]
[SourceTitle "playchess.com"]
[Source "ChessBase"]
[SourceQuality "1"]
[TimeControl "40/5400+30:1800+30"]

1. e4 {[%emt 0:00:05]} c5 {[%emt 0:00:36]} 2. Nf3 {[%emt 0:00:06]} Nc6 {[%emt 0:00:05]} 3. d4 {[%emt 0:00:05]} cxd4 {[%emt 0:00:04]} 4. Nxd4 {[%emt 0:00:04]} g6 {[%emt 0:00:07]} 5. Nb3 {[%emt 0:00:20]} Bg7 {[%emt 0:00:47]} 6. Be2 {[%emt 0:00:09]} Nf6 {[%emt 0:00:15]} 7. Nc3 {[%emt 0:00:06]} O-O {[%emt 0:00:28]} 8. O-O {[%emt 0:00:08]} d6 {[%emt 0:04:54]} 9. Bg5 {[%emt 0:00:37]} a6 {[%emt 0:06:51]} 10. f4 {[%emt 0:03:02]} b5 {[%emt 0:05:07]} 11. Bf3 {[%emt 0:01:54]} Bb7 {[%emt 0:20:22]} 12. a4 {[%emt 0:18:43]} b4 {[%emt 0:00:57]} 13. Nd5 {[%emt 0:00:14]} Nxd5 {[%emt 0:01:28]} 14. exd5 {[%emt 0:00:09]} Na5 {[%emt 0:01:18]} 15. Bxe7 {[%emt 0:16:28]} Qxe7 {[%emt 0:01:01]} 16. Nxa5 {[%emt 0:00:09]} Bxb2 {[%emt 0:01:49]} 17. Rb1 {[%emt 0:00:16]} Bc3 {[%emt 0:00:37]} 18. Qd3 {[%emt 0:01:03]} Qc7 {[%emt 0:17:34]} 19. Nxb7 {[%emt 0:07:47]} Qxb7 {[%emt 0:00:08]} 20. f5 {[%emt 0:00:23]} Qd7 {[%emt 0:01:52]} 21. Be4 {[%emt 0:02:52]} a5 {[%emt 0:14:44]} 22. Rf3 {[%emt 0:08:13]} Qxa4 {[%emt 0:06:16]} 23. fxg6 {[%emt 0:04:10]} fxg6 {[%emt 0:00:13]} 24. Bxg6 {[%emt 0:00:17]} Qd7 {[%emt 0:00:55]} 25. Bf5 {[%emt 0:01:41]} Rxf5 {[%emt 0:02:40]} 26. Rxf5 {[%emt 0:00:41]} a4 {[%emt 0:01:11]} 27. Rbf1 {[%emt 0:21:08]} a3 {[%emt 0:05:55]} 28. Qf3 {[%emt 0:00:30]} Qa7+ {[%emt 0:02:25]} 29. Kh1 {[%emt 0:00:06]} Bg7 {[%emt 0:00:25]} 30. Rf7 {[%emt 0:06:32]} Qd4 {[%emt 0:00:10]} 31. Re7 {[%emt 0:00:48]} h6 {[%emt 0:02:30]} 32. Qf7+ {[%emt 0:01:51]} Kh7 {[%emt 0:01:53]} 33. Qf5+ {[%emt 0:00:43]} Kh8 {[%emt 0:00:08]} 34. Rc7 {[%emt 0:01:28]} Qe5 {[%emt 0:01:09]} 35. Rc8+ {[%emt 0:00:06]} Rxc8 {[%emt 0:00:04]} 36. Qxc8+ {[%emt 0:00:03]} Kh7 {[%emt 0:00:04]} 37. Qc4 {[%emt 0:00:27]} Qd4 {[%emt 0:00:24]} 38. Qb3 {[%emt 0:00:25]} Qc3 {[%emt 0:01:07]} 39. Qa2 {[%emt 0:01:36]} Qb2 {[%emt 0:00:34]} 40. Qc4 {[%emt 0:00:10]} Qd4 {[%emt 0:00:22]} 41. Qa2 {[%emt 0:09:09]} Be5 {[%emt 0:11:00]} 42. Qb3 {[%emt 0:01:05]} Qh4 {[%emt 0:02:49]} 43. Qd3+ {[%emt 0:01:07]} Kg7 {[%emt 0:00:42]} 44. g3 {[%emt 0:01:45]} Qh3 {[%emt 0:01:23]} 45. Re1 {[%emt 0:03:57]} a2 {[%emt 0:03:40]} 46. Qa6 {[%emt 0:15:59]} Qf5 {[%emt 0:11:21]} 47. Rxe5 {[%emt 0:04:22]} dxe5 {[%emt 0:00:09]} 48. Kg1 {[%emt 0:00:14]} b3 {[%emt 0:01:05]} 49. cxb3 {[%emt 0:00:38]} Qb1+ {[%emt 0:00:12]} 50. Kf2 {[%emt 0:00:58]} a1=Q {[%emt 0:02:04]} 51. Qb7+ {[%emt 0:00:11]} Kf6 {[%emt 0:00:23]} 52. Qc6+ {[%emt 0:00:48]} Kf5 {[%emt 0:00:45]} 53. Qe6+ {[%emt 0:00:27]} Ke4 {[%emt 0:00:18]} 54. Qg4+ {[%emt 0:00:18]} Kd3 {[%emt 0:01:02]} 55. Qe2+ {[%emt 0:00:13]} Kc3 {[%emt 0:00:12]} 56. Qxe5+ {[%emt 0:00:09]} Kxb3 {[%emt 0:00:47]} 57. Qb8+ {[%emt 0:00:08]} Kc2 {[%emt 0:00:22]} 58. Qc8+ {[%emt 0:00:37]} Kd2 {[%emt 0:00:39]} 0-1

[Event "Czech Juniors Boys 2024"]
[Site "Jaromerice nad Rokytnou"]
[Date "2024.03.10"]
[Round "3.6"]
[White "Bokhnak, Timofey"]
[Black "Bohacek, Jan Andrej"]
[Result "1-0"]
[ECO "B13"]
[WhiteElo "2241"]
[BlackElo "2140"]
[Annotator "ChessBase"]
[PlyCount "85"]
[EventDate "2024.03.10"]
[EventType "tourn"]
[EventCountry "CZE"]
[SourceTitle "playchess.com"]
[Source "ChessBase"]
[SourceQuality "1"]
[TimeControl "40/5400+30:1800+30"]

1. e4 {[%emt 0:00:06]} c6 {[%emt 0:00:06]} 2. d4 {[%emt 0:00:05]} d5 {[%emt 0:00:04]} 3. exd5 {[%emt 0:01:11]} cxd5 {[%emt 0:00:10]} 4. Bd3 {[%emt 0:00:05]} Nc6 {[%emt 0:00:10]} 5. c3 {[%emt 0:00:05]} Nf6 {[%emt 0:00:06]} 6. Nf3 {[%emt 0:00:05]} Bg4 {[%emt 0:01:10]} 7. h3 {[%emt 0:00:09]} Bh5 {[%emt 0:01:55]} 8. Bf4 {[%emt 0:00:18]} e6 {[%emt 0:01:13]} 9. Nbd2 {[%emt 0:00:22]} Bd6 {[%emt 0:01:26]} 10. Bxd6 {[%emt 0:00:08]} Qxd6 {[%emt 0:00:06]} 11. O-O {[%emt 0:00:07]} O-O {[%emt 0:01:30]} 12. Re1 {[%emt 0:00:56]} Bg6 {[%emt 0:05:21]} 13. Bxg6 {[%emt 0:03:12]} hxg6 {[%emt 0:00:10]} 14. Ne5 {[%emt 0:00:24]} Rfc8 {[%emt 0:06:27]} 15. Qe2 {[%emt 0:15:16]} Rab8 {[%emt 0:03:09]} 16. a3 {[%emt 0:03:33]} Qc7 {[%emt 0:14:38]} 17. Nd3 {[%emt 0:14:22]} Na5 {[%emt 0:11:13]} 18. Qf3 {[%emt 0:13:20]} Ne8 {[%emt 0:16:23]} 19. h4 {[%emt 0:02:26]} Nd6 {[%emt 0:05:03]} 20. g3 {[%emt 0:05:39]} Qd8 {[%emt 0:06:36]} 21. Ne5 {[%emt 0:02:09]} Rc7 {[%emt 0:00:44]} 22. Qf4 {[%emt 0:06:39]} Nac4 {[%emt 0:04:19]} 23. Ndxc4 {[%emt 0:00:52]} Nxc4 {[%emt 0:00:20]} 24. Nxc4 {[%emt 0:03:42]} Rxc4 {[%emt 0:00:08]} 25. Kg2 {[%emt 0:00:40]} Rcc8 {[%emt 0:02:23]} 26. Re5 {[%emt 0:01:17]} Qf6 {[%emt 0:03:27]} 27. Qg4 {[%emt 0:00:24]} b5 {[%emt 0:02:57]} 28. Rae1 {[%emt 0:05:59]} a5 {[%emt 0:03:06]} 29. R1e3 {[%emt 0:00:25]} b4 {[%emt 0:00:44]} 30. axb4 {[%emt 0:00:32]} axb4 {[%emt 0:00:08]} 31. Rg5 {[%emt 0:02:49]} bxc3 {[%emt 0:01:32]} 32. bxc3 {[%emt 0:00:04]} Rb3 {[%emt 0:02:43]} 33. Rf3 {[%emt 0:01:26]} Qe7 {[%emt 0:00:06]} 34. h5 {[%emt 0:02:08]} f5 {[%emt 0:03:59]} 35. Qf4 {[%emt 0:01:11]} gxh5 {[%emt 0:01:24]} 36. Rxh5 {[%emt 0:02:15]} Rcxc3 {[%emt 0:01:29]} 37. Rxc3 {[%emt 0:00:08]} Rxc3 {[%emt 0:00:05]} 38. Qb8+ {[%emt 0:00:05]} Kf7 {[%emt 0:00:09]} 39. Rh8 {[%emt 0:00:13]} Rd3 {[%emt 0:02:16]} 40. Rc8 {[%emt 0:06:53]} Kg6 {[%emt 0:00:59]} 41. Rc7 {[%emt 0:38:11]} Qf6 {[%emt 0:02:51]} 42. Qe8+ {[%emt 0:00:00]} Kh7 {[%emt 0:03:39]} 43. Rc1 {[%emt 0:00:00]} 1-0

[Event "Czech Juniors Boys 2024"]
[Site "Jaromerice nad Rokytnou"]
[Date "2024.03.10"]
[Round "4.1"]
[White "Lang, Simon"]
[Black "Bohacek, Jan Andrej"]
[Result "0-1"]
[ECO "B15"]
[WhiteElo "2043"]
[BlackElo "2140"]
[Annotator "RC"]
[PlyCount "74"]
[EventDate "2024.03.10"]
[EventType "tourn"]
[EventCountry "CZE"]
[SourceTitle "playchess.com"]
[Source "ChessBase"]
[SourceQuality "1"]
[TimeControl "40/5400+30:1800+30"]

1. e4 {[%emt 0:00:22]} c6 {[%emt 0:00:07]} 2. d4 {[%emt 0:00:35]} d5 {[%emt 0:00:06]} 3. Nc3 {[%emt 0:00:53]} dxe4 {[%emt 0:00:09]} 4. Nxe4 {[%emt 0:00:08]} Nf6 {[%emt 0:00:05]} 5. Nxf6+ {[%emt 0:00:19]} exf6 {[%emt 0:00:11]} 6. c3 {[%emt 0:00:28]} Bd6 {[%emt 0:00:07]} 7. Bd3 {[%emt 0:00:31]} O-O {[%emt 0:00:08]} 8. Qc2 {[%emt 0:00:22]} Re8+ {[%emt 0:00:07]} 9. Ne2 {[%emt 0:00:27]} h5 {[%emt 0:00:08]} 10. O-O {[%emt 0:01:06]} h4 {[%emt 0:01:42]} 11. h3 {[%emt 0:00:43]} Nd7 {[%emt 0:00:35]} 12. Bd2 {[%emt 0:00:51]} Nf8 {[%emt 0:00:54]} 13. Rae1 {[%emt 0:01:02]} g6 {[%emt 0:00:30]} 14. f4 {[%emt 0:05:00]} f5 {[%emt 0:00:15]} 15. Kh1 {[%emt 0:05:37]} Be6 {[%emt 0:09:03]} 16. Ng1 {[%emt 0:03:11]} Qc7 {[%emt 0:05:14]} 17. c4 {[%emt 0:08:39]} Nd7 {[%emt 0:06:51]} 18. c5 {[%emt 0:08:30]} Be7 {[%emt 0:01:31]} 19. Nf3 {[%emt 0:01:55]} Nf6 {[%emt 0:01:51]} 20. Nxh4 {[%emt 0:09:29]} Ne4 {[%emt 0:15:42]} 21. Nxf5 {[%emt 0:09:07]} gxf5 {[%emt 0:03:08]} 22. Bxe4 {[%emt 0:00:11]} fxe4 {[%emt 0:00:26]} 23. Rxe4 {[%emt 0:07:20]} Bd5 {[%emt 0:10:23]} 24. Re3 {[%emt 0:17:09]} Bf6 {[%emt 0:07:15]} 25. Rg3+ {[%emt 0:00:56]} Bg7 {[%emt 0:06:12]} 26. Qf5 {[%emt 0:03:15]} Re6 {[%emt 0:02:25]} 27. Qh5 {[%emt 0:01:06]} Rg6 {[%emt 0:09:11]} 28. Rxg6 {[%emt 0:00:43]} fxg6 {[%emt 0:00:07]} 29. Qxg6 {[%emt 0:00:14]} Qf7 {[%emt 0:00:12]} 30. Qg4 {[%emt 0:01:54]} Re8 {[%emt 0:03:26]} 31. h4 {[%emt 0:02:46]} Qe6 {[%emt 0:01:48]} 32. Qg5 {[%emt 0:02:07]} Qf6 {[%emt 0:01:25]} 33. Qh5 {[%emt 0:01:34]} Qf7 {[%emt 0:02:35]} 34. Qg5 {[%emt 0:00:54]} Re2 {[%emt 0:00:35]} 35. Qd8+ {[%emt 0:00:36]} Qf8 {[%emt 0:00:42]} 36. Qc7 {[%emt 0:02:36]} Rxd2 {[%emt 0:00:40]} 37. Re1 {[%emt 0:00:47]} Rxg2 {[%emt 0:00:26]} 0-1

[Event "Czech Juniors Boys 2024"]
[Site "Jaromerice nad Rokytnou"]
[Date "2024.03.10"]
[Round "4.2"]
[White "Hak, David"]
[Black "Bokhnak, Timofey"]
[Result "1-0"]
[ECO "D37"]
[WhiteElo "2283"]
[BlackElo "2241"]
[Annotator "RC"]
[PlyCount "83"]
[EventDate "2024.03.10"]
[EventType "tourn"]
[EventCountry "CZE"]
[SourceTitle "playchess.com"]
[Source "ChessBase"]
[SourceQuality "1"]
[TimeControl "40/5400+30:1800+30"]

1. d4 {[%emt 0:01:47]} Nf6 {[%emt 0:00:27]} 2. c4 {[%emt 0:00:08]} e6 {[%emt 0:00:06]} 3. Nc3 {[%emt 0:00:05]} d5 {[%emt 0:00:09]} 4. Nf3 {[%emt 0:00:06]} Be7 {[%emt 0:00:24]} 5. Bf4 {[%emt 0:00:51]} O-O {[%emt 0:00:55]} 6. e3 {[%emt 0:00:52]} b6 {[%emt 0:00:27]} 7. cxd5 {[%emt 0:00:42]} Nxd5 {[%emt 0:00:50]} 8. Nxd5 {[%emt 0:01:40]} exd5 {[%emt 0:01:03]} 9. Bd3 {[%emt 0:02:57]} c5 {[%emt 0:01:08]} 10. O-O {[%emt 0:10:15]} Be6 {[%emt 0:02:40]} 11. Ne5 {[%emt 0:11:04]} Qe8 {[%emt 0:16:44]} 12. e4 {[%emt 0:13:09]} f6 {[%emt 0:05:40]} 13. Nf3 {[%emt 0:01:02]} Qf7 {[%emt 0:04:06]} 14. Qc2 {[%emt 0:07:01]} g6 {[%emt 0:02:33]} 15. dxc5 {[%emt 0:04:06]} Bxc5 {[%emt 0:09:13]} 16. Qa4 {[%emt 0:10:39]} Bd7 {[%emt 0:08:13]} 17. Qb3 {[%emt 0:01:08]} Be6 {[%emt 0:01:08]} 18. e5 {[%emt 0:00:39]} Nc6 {[%emt 0:04:26]} 19. exf6 {[%emt 0:07:14]} Nd4 {[%emt 0:01:43]} 20. Nxd4 {[%emt 0:00:26]} Bxd4 {[%emt 0:00:02]} 21. Bd6 {[%emt 0:02:11]} Rfd8 {[%emt 0:04:36]} 22. Be7 {[%emt 0:00:32]} Rdc8 {[%emt 0:00:54]} 23. Ba6 {[%emt 0:01:21]} Rc7 {[%emt 0:00:11]} 24. Qg3 {[%emt 0:01:08]} Rc5 {[%emt 0:03:32]} 25. Bxc5 {[%emt 0:06:48]} bxc5 {[%emt 0:00:09]} 26. Qd6 {[%emt 0:01:24]} Qxf6 {[%emt 0:08:35]} 27. Rae1 {[%emt 0:01:49]} Kf7 {[%emt 0:01:04]} 28. Qc7+ {[%emt 0:03:47]} Qe7 {[%emt 0:00:01]} 29. Qf4+ {[%emt 0:02:33]} Kg7 {[%emt 0:01:02]} 30. Re2 {[%emt 0:01:17]} Rf8 {[%emt 0:01:19]} 31. Qd2 {[%emt 0:02:08]} Qd6 {[%emt 0:01:15]} 32. Qe1 {[%emt 0:02:22]} Bg4 {[%emt 0:03:29]} 33. Re7+ {[%emt 0:00:12]} Kg8 {[%emt 0:00:05]} 34. Rxa7 {[%emt 0:01:19]} Be6 {[%emt 0:02:54]} 35. Bb5 {[%emt 0:00:53]} c4 {[%emt 0:02:00]} 36. Ra6 {[%emt 0:00:09]} Bb6 {[%emt 0:00:01]} 37. Qe3 {[%emt 0:02:36]} d4 {[%emt 0:00:41]} 38. Qe4 {[%emt 0:00:23]} Rb8 {[%emt 0:05:21]} 39. Ra8 {[%emt 0:00:39]} Bc7 {[%emt 0:00:38]} 40. Rxb8+ {[%emt 0:00:17]} Bxb8 {[%emt 0:00:01]} 41. g3 {[%emt 0:00:57]} Bf7 {[%emt 0:01:05]} 42. Rc1 {[%emt 0:04:48]} 1-0

[Event "Czech Juniors Boys 2024"]
[Site "Jaromerice nad Rokytnou"]
[Date "2024.03.10"]
[Round "4.3"]
[White "Frank, Adam"]
[Black "Paseka, Matyas"]
[Result "1-0"]
[ECO "B94"]
[WhiteElo "2284"]
[BlackElo "2233"]
[Annotator "RC"]
[PlyCount "73"]
[EventDate "2024.03.10"]
[EventType "tourn"]
[EventCountry "CZE"]
[SourceTitle "playchess.com"]
[Source "ChessBase"]
[SourceQuality "1"]
[TimeControl "40/5400+30:1800+30"]

1. e4 {[%emt 0:00:02]} c5 {[%emt 0:00:04]} 2. Nf3 {[%emt 0:00:04]} d6 {[%emt 0:00:04]} 3. d4 {[%emt 0:00:03]} cxd4 {[%emt 0:00:03]} 4. Nxd4 {[%emt 0:00:04]} Nf6 {[%emt 0:00:05]} 5. Nc3 {[%emt 0:00:03]} a6 {[%emt 0:01:52]} 6. Bg5 {[%emt 0:00:06]} Nbd7 {[%emt 0:00:06]} 7. Bc4 {[%emt 0:00:14]} Qb6 {[%emt 0:01:39]} 8. Bb3 {[%emt 0:00:05]} e6 {[%emt 0:01:29]} 9. Qd2 {[%emt 0:00:06]} Nc5 {[%emt 0:02:38]} 10. Bxf6 {[%emt 0:07:27]} gxf6 {[%emt 0:00:08]} 11. O-O-O {[%emt 0:00:05]} Bd7 {[%emt 0:01:03]} 12. f4 {[%emt 0:01:30]} h5 {[%emt 0:04:19]} 13. Kb1 {[%emt 0:02:15]} O-O-O {[%emt 0:12:34]} 14. Rhf1 {[%emt 0:06:01]} Be7 {[%emt 0:02:09]} 15. Nf5 {[%emt 0:08:17]} Bf8 {[%emt 0:00:11]} 16. Nxd6+ {[%emt 0:03:32]} Bxd6 {[%emt 0:00:08]} 17. Qxd6 {[%emt 0:00:04]} Qxd6 {[%emt 0:00:05]} 18. Rxd6 {[%emt 0:00:04]} Bc6 {[%emt 0:00:19]} 19. Rxd8+ {[%emt 0:37:28]} Rxd8 {[%emt 0:00:17]} 20. Kc1 {[%emt 0:02:59]} Nxe4 {[%emt 0:08:16]} 21. Nxe4 {[%emt 0:00:05]} Bxe4 {[%emt 0:00:07]} 22. g3 {[%emt 0:00:02]} h4 {[%emt 0:09:30]} 23. g4 {[%emt 0:06:20]} Rg8 {[%emt 0:01:59]} 24. Rg1 {[%emt 0:00:14]} h3 {[%emt 0:02:42]} 25. c3 {[%emt 0:02:06]} Bg2 {[%emt 0:00:48]} 26. Bd1 {[%emt 0:00:04]} Rd8 {[%emt 0:23:53]} 27. Be2 {[%emt 0:01:16]} Kc7 {[%emt 0:00:14]} 28. Rd1 {[%emt 0:02:34]} Rd6 {[%emt 0:04:00]} 29. Rxd6 {[%emt 0:00:12]} Kxd6 {[%emt 0:00:04]} 30. Kd2 {[%emt 0:00:04]} e5 {[%emt 0:06:53]} 31. Ke3 {[%emt 0:00:04]} b5 {[%emt 0:17:10]} 32. a4 {[%emt 0:01:35]} Bc6 {[%emt 0:00:38]} 33. axb5 {[%emt 0:08:10]} axb5 {[%emt 0:00:06]} 34. Bf1 {[%emt 0:04:16]} Kc5 {[%emt 0:00:56]} 35. Bxh3 {[%emt 0:00:05]} Kc4 {[%emt 0:00:16]} 36. Bf1+ {[%emt 0:01:19]} Kb3 {[%emt 0:00:06]} 37. f5 {[%emt 0:01:53]} 1-0

[Event "Czech Juniors Boys 2024"]
[Site "Jaromerice nad Rokytnou"]
[Date "2024.03.10"]
[Round "4.4"]
[White "Jares, Michal"]
[Black "Skypala, Ondrej"]
[Result "1/2-1/2"]
[ECO "A13"]
[WhiteElo "2347"]
[BlackElo "2234"]
[Annotator "RC"]
[PlyCount "133"]
[EventDate "2024.03.10"]
[EventType "tourn"]
[EventCountry "CZE"]
[SourceTitle "playchess.com"]
[Source "ChessBase"]
[SourceQuality "1"]
[TimeControl "40/5400+30:1800+30"]

1. Nf3 {[%emt 0:00:03]} Nf6 {[%emt 0:00:04]} 2. g3 {[%emt 0:00:07]} b5 {[%emt 0:00:03]} 3. Bg2 {[%emt 0:00:10]} Bb7 {[%emt 0:00:05]} 4. O-O {[%emt 0:00:50]} e6 {[%emt 0:00:04]} 5. b3 {[%emt 0:01:59]} c5 {[%emt 0:00:05]} 6. c4 {[%emt 0:00:33]} a6 {[%emt 0:00:08]} 7. Bb2 {[%emt 0:00:49]} Be7 {[%emt 0:00:26]} 8. e3 {[%emt 0:02:10]} O-O {[%emt 0:00:25]} 9. d4 {[%emt 0:00:15]} cxd4 {[%emt 0:00:18]} 10. exd4 {[%emt 0:00:22]} d6 {[%emt 0:00:12]} 11. Nbd2 {[%emt 0:02:28]} Nbd7 {[%emt 0:03:46]} 12. Rc1 {[%emt 0:05:40]} Qa5 {[%emt 0:04:19]} 13. Qc2 {[%emt 0:02:01]} Rab8 {[%emt 0:07:54]} 14. Bc3 {[%emt 0:03:01]} b4 {[%emt 0:05:05]} 15. Bb2 {[%emt 0:01:33]} Qh5 {[%emt 0:00:10]} 16. Qd1 {[%emt 0:01:20]} Ne4 {[%emt 0:07:15]} 17. Nxe4 {[%emt 0:03:55]} Bxe4 {[%emt 0:00:21]} 18. Ne5 {[%emt 0:02:03]} Qxd1 {[%emt 0:00:13]} 19. Rfxd1 {[%emt 0:00:02]} dxe5 {[%emt 0:12:12]} 20. Bxe4 {[%emt 0:00:05]} exd4 {[%emt 0:01:35]} 21. Bxd4 {[%emt 0:00:05]} Nc5 {[%emt 0:00:22]} 22. Bf3 {[%emt 0:08:12]} Rfd8 {[%emt 0:00:34]} 23. Kf1 {[%emt 0:00:54]} f6 {[%emt 0:01:24]} 24. Ke2 {[%emt 0:01:20]} Kf8 {[%emt 0:00:19]} 25. Be3 {[%emt 0:01:13]} Ke8 {[%emt 0:02:00]} 26. Bf4 {[%emt 0:05:22]} Rbc8 {[%emt 0:02:40]} 27. Be3 {[%emt 0:08:25]} Rb8 {[%emt 0:00:59]} 28. Bc6+ {[%emt 0:01:23]} Kf7 {[%emt 0:00:43]} 29. Rxd8 {[%emt 0:00:54]} Rxd8 {[%emt 0:00:05]} 30. Rc2 {[%emt 0:03:13]} Rc8 {[%emt 0:00:26]} 31. Bxc5 {[%emt 0:01:37]} Bxc5 {[%emt 0:00:08]} 32. Bb7 {[%emt 0:00:23]} Rd8 {[%emt 0:00:31]} 33. Bxa6 {[%emt 0:00:03]} Rd7 {[%emt 0:00:05]} 34. f4 {[%emt 0:03:23]} Ke7 {[%emt 0:00:09]} 35. Kf1 {[%emt 0:01:40]} Rd1+ {[%emt 0:03:58]} 36. Ke2 {[%emt 0:01:53]} Rd7 {[%emt 0:00:06]} 37. Kf3 {[%emt 0:00:56]} Rd3+ {[%emt 0:01:58]} 38. Kg4 {[%emt 0:01:30]} Kd7 {[%emt 0:01:18]} 39. Re2 {[%emt 0:00:39]} Rd1 {[%emt 0:00:50]} 40. Bb5+ {[%emt 0:02:59]} Kd6 {[%emt 0:02:14]} 41. Be8 {[%emt 0:30:23]} e5 {[%emt 0:35:49]} 42. Bf7 {[%emt 0:08:21]} exf4 {[%emt 0:08:44]} 43. gxf4 {[%emt 0:01:32]} Bd4 {[%emt 0:03:24]} 44. Bg8 {[%emt 0:02:27]} Rg1+ {[%emt 0:01:01]} 45. Kf5 {[%emt 0:00:26]} h5 {[%emt 0:00:08]} 46. Bf7 {[%emt 0:08:35]} Rf1 {[%emt 0:04:13]} 47. Ke4 {[%emt 0:09:19]} Kc5 {[%emt 0:13:39]} 48. Bxh5 {[%emt 0:01:22]} g5 {[%emt 0:02:26]} 49. fxg5 {[%emt 0:05:01]} fxg5 {[%emt 0:00:29]} 50. Kd3 {[%emt 0:00:00]} Rd1+ {[%emt 0:00:00]} 51. Kc2 {[%emt 0:00:00]} Ra1 {[%emt 0:00:00]} 52. Re8 {[%emt 0:00:00]} Rxa2+ {[%emt 0:00:00]} 53. Kd3 {[%emt 0:00:00]} Rxh2 {[%emt 0:00:00]} 54. Rc8+ {[%emt 0:00:00]} Kd6 {[%emt 0:00:00]} 55. Kxd4 {[%emt 0:00:00]} Rh4+ {[%emt 0:00:00]} 56. Kd3 {[%emt 0:00:00]} Rxh5 {[%emt 0:00:00]} 57. Rb8 {[%emt 0:00:00]} Rh3+ {[%emt 0:00:00]} 58. Kc2 {[%emt 0:00:00]} Rh2+ {[%emt 0:00:00]} 59. Kd1 {[%emt 0:00:00]} Kc5 {[%emt 0:00:00]} 60. Rb5+ {[%emt 0:00:36]} Kd4 {[%emt 0:00:00]} 61. Rxb4 {[%emt 0:01:03]} Kd3 {[%emt 0:00:00]} 62. Ke1 {[%emt 0:00:07]} Ke3 {[%emt 0:00:00]} 63. Kf1 {[%emt 0:00:15]} Kf3 {[%emt 0:00:00]} 64. Kg1 {[%emt 0:00:54]} Rc2 {[%emt 0:00:00]} 65. Rb8 {[%emt 0:03:37]} g4 {[%emt 0:00:00]} 66. Rf8+ {[%emt 0:00:32]} Kg3 {[%emt 0:00:00]} 67. Rf1 {[%emt 0:01:06]} 1/2-1/2